Cogmind - Beta 12 @@@ ROGUE MODE // 2023.03.08 @ 15:42:38 // Winter2019/RPGLIKE Player: Torako Result: Smashed by cave-in Performance ------------- Evolutions (6) 3000 Regions Visited (20) 4000 Robots Destroyed (178) 890 Value Destroyed (8757) 8757 Prototype IDs (34) 680 Alien Tech Used (0) 0 Bonus (5816) 5816 TOTAL SCORE: 23143 Bonus ------- High Alert Combat Kills 879 Follower Combat Kills 532 Entered Garrisons 1200 Used RIF Installer 3500 Aligned with FarCom 300 Friendly Fire -595 Cogmind --------- Core Integrity 0/600 Matter 279/300 Energy 4/340 System Corruption 0% Temperature Cool (0) Movement Flying (26) Location -4/Armory Parts ------- > --- POWER (1) -------- Particle Reactor > --- PROPULSION (5) --- Improved Cesium-ion Thruster Improved Cesium-ion Thruster Q-thruster Q-thruster Q-thruster > --- UTILITY (7) ------ Advanced Force Field Relay Coupler [Swarmer] (81) Relay Coupler [Grunt] (4) Relay Coupler [Sentry] (50) Relay Coupler [Specialist] (44) Relay Coupler [Hunter] (6) Relay Coupler [Proto] (18) > --- WEAPON (2) ------- Improved Remote Datajack Phasing Sabre > --- INVENTORY (5) ---- Protomatter-65 Relay Coupler [Duelist] (62) Relay Coupler [Behemoth] (36) Relay Coupler [Proto] (18) Relay Coupler [Proto] (18) Peak State ------------ > --- POWER ------------ Particle Reactor > --- PROPULSION ------- Improved Cesium-ion Thruster Improved Cesium-ion Thruster Q-thruster Q-thruster Q-thruster > --- UTILITY ---------- Antimissile System Relay Coupler [Swarmer] Relay Coupler [Grunt] Relay Coupler [Sentry] Relay Coupler [Specialist] Relay Coupler [Hunter] Relay Coupler [Proto] > --- WEAPON ----------- Improved Remote Datajack Phasing Sabre > --- INVENTORY -------- Advanced Force Field Relay Coupler [Duelist] Relay Coupler [Behemoth] Relay Coupler [Proto] Relay Coupler [Proto] [Rating: 94] Favorites ----------- Power Micro Nuclear Core Engine Reinforced Deuterium Engine Power Core Micro Nuclear Core Reactor Particle Reactor Propulsion VTOL Module Leg Aluminum Leg Flight Unit VTOL Module Utility Hardened Medium Armor Plating Device Improved Terrain Scanner Processor Melee Analysis Suite Hackware Relay Coupler [NC] Protection Hardened Medium Armor Plating Weapon Makeshift Spear Ballistic Gun Assault Rifle Ballistic Cannon Light Cannon Special Weapon Remote Datajack Slashing Weapon Phasing Sabre Piercing Weapon Makeshift Spear Special Melee Weapon Improved Datajack Build | -11 -10 -10 -9 -9 -9 -8 -8 -8 -8 -8 -7 -7 -7 -7 -6 -6 -5 -5 -4 -4 ------- Run | Jun Mat Min Mat Min Exi Min Mat Gar Mat Gar Fac Gar Fac Gar Fac Gar Fac Gar Fac Arm Slots Evolved 11 | 2 1 1 3 . . . . . . . 1 . . 1 . 1 . 1 . . Power . | . . . . . . . . . . . . . . . . . . . . . Propulsion 4 | 1 1 . . . . . . . . . 1 . . . . . . 1 . . Utility 6 | 1 . 1 2 . . . . . . . . . . 1 . 1 . . . . Weapon 1 | . . . 1 . . . . . . . . . . . . . . . . . Parts Attached 66 | 5 7 7 8 . . . 2 6 . 1 5 4 . 1 . 8 . 4 1 7 Power 9 | 1 . 1 2 . . . . 1 . . . 1 . . . 1 . . . 2 Engine 4 | 1 . . 2 . . . . . . . . 1 . . . . . . . . Core 2 | . . 1 . . . . . 1 . . . . . . . . . . . . Reactor 3 | . . . . . . . . . . . . . . . . 1 . . . 2 Propulsion 14 | 2 3 . 2 . . . . . . . 3 . . . . 2 . 1 . 1 Treads . | . . . . . . . . . . . . . . . . . . . . . Leg 2 | 2 . . . . . . . . . . . . . . . . . . . . Wheel . | . . . . . . . . . . . . . . . . . . . . . Hover . | . . . . . . . . . . . . . . . . . . . . . Flight 12 | . 3 . 2 . . . . . . . 3 . . . . 2 . 1 . 1 Utility 35 | 1 3 5 3 . . . 2 5 . 1 . 3 . 1 . 4 . 3 . 4 Device 11 | 1 . 1 1 . . . 2 2 . . . . . . . 1 . . . 3 Storage . | . . . . . . . . . . . . . . . . . . . . . Processor 4 | . 1 . 1 . . . . 2 . . . . . . . . . . . . Hackware 11 | . . . . . . . . 1 . . . 3 . 1 . 2 . 3 . 1 Protection 9 | . 2 4 1 . . . . . . 1 . . . . . 1 . . . . Artifact . | . . . . . . . . . . . . . . . . . . . . . Weapon 8 | 1 1 1 1 . . . . . . . 2 . . . . 1 . . 1 . Energy Gun . | . . . . . . . . . . . . . . . . . . . . . Energy Cannon . | . . . . . . . . . . . . . . . . . . . . . Ballistic Gun 1 | 1 . . . . . . . . . . . . . . . . . . . . Ballistic Cannon 1 | . 1 . . . . . . . . . . . . . . . . . . . Launcher . | . . . . . . . . . . . . . . . . . . . . . Special Weapon 2 | . . . . . . . . . . . 1 . . . . . . . 1 . Impact Weapon . | . . . . . . . . . . . . . . . . . . . . . Slashing Weapon 1 | . . . . . . . . . . . . . . . . 1 . . . . Piercing Weapon 2 | . . 1 . . . . . . . . 1 . . . . . . . . . Special Melee Weapon 1 | . . . 1 . . . . . . . . . . . . . . . . . Unidentified Prototypes 3 | . . 1 1 . . . . . . . 1 . . . . . . . . . Parts Lost . | . . . . . . . . . . . . . . . . . . . . . Power . | . . . . . . . . . . . . . . . . . . . . . Propulsion . | . . . . . . . . . . . . . . . . . . . . . Utility . | . . . . . . . . . . . . . . . . . . . . . Weapon . | . . . . . . . . . . . . . . . . . . . . . Highest Loss Streak . | . . . . . . . . . . . . . . . . . . . . . To Critical Strikes . | . . . . . . . . . . . . . . . . . . . . . Average Slot Usage (%) 97 | . 84 99 97 100 100 81 87 98 99 98 100 99 100 100 100 99 100 100 100 99 Engine 5 | . 15 2 9 9 9 9 9 . . . . 3 8 7 7 3 . . . . Core 2 | . . 9 . . . . . 8 9 9 8 4 . . . . . . . . Reactor 1 | . . . . . . . . . . . . . . . . 3 7 6 6 6 Leg 2 | . 23 . . . . . . . . . . . . . . . . . . . Flight 28 | . 11 37 30 27 27 27 27 27 27 27 31 33 33 31 30 29 28 30 33 32 Device 11 | . 15 13 24 27 27 18 24 24 17 9 8 . . . . 2 7 6 6 6 Processor 3 | . . . 10 9 9 . . 9 9 9 8 . . . . . . . . . Hackware 17 | . . . . . . . . 1 9 9 8 26 33 36 38 38 42 41 40 40 Protection 7 | . . 21 10 9 9 9 9 9 9 16 16 12 8 7 7 3 . . . . Ballistic Cannon 1 | . 11 5 . . . . . . . . . . . . . . . . . . Special Weapon 3 | . . . . . . . . . . . 4 8 8 7 7 7 7 6 6 6 Slashing Weapon 1 | . . . . . . . . . . . . . . . . 3 7 6 6 6 Piercing Weapon 6 | . . 6 10 9 9 9 9 9 9 9 8 8 8 7 7 3 . . . . Special Melee Weapon 2 | . . . 2 9 9 9 9 9 9 9 4 . . . . . . . . . Naked Turns . | . . . . . . . . . . . . . . . . . . . . . Heaviest Build 41 | 8 12 14 22 18 18 17 21 24 21 22 24 28 28 28 28 40 40 40 41 41 Greatest Support 51 | 20 30 22 22 22 22 22 22 27 27 27 35 35 35 35 35 43 43 51 51 51 Greatest Overweight (x) 1 | 1 . . . . . . . . . . . . . . . . . . . . Average Overweight (x) . | . . . . . . . . . . . . . . . . . . . . . Largest Inventory Capacity 5 | . . . 2 2 2 2 2 3 3 3 3 3 3 3 3 5 5 5 5 5 Average Capacity 2 | . . . . 2 2 2 2 2 3 3 3 3 3 3 3 4 5 5 5 5 Most Carried 5 | . . . 1 2 2 2 2 3 3 3 3 3 3 3 3 5 3 5 5 5 Average Carried 2 | . . . . 1 1 2 2 2 3 3 3 3 3 3 3 3 3 4 5 4 Final Capacity 5 | . . . 2 2 2 2 2 3 3 3 3 3 3 3 3 5 5 5 5 5 Final Carried 5 | . . . 1 2 2 2 2 3 3 3 3 3 3 3 3 3 3 5 5 5 Class Distribution -------------------- 38% | Hacker-Sprinter 25% | Botlord-Sprinter 20% | Hacker-Scout 7% | Hacker-Mutant 7% | Bothacker-Sprinter Dominant Class ---------------- Hacker-Mutant | -10/Materials Hacker-Sprinter | -10/Mines Hacker-Scout | -9/Materials Hacker-Scout | -9/Mines Hacker-Scout | -9/Exiles Hacker-Scout | -8/Mines Hacker-Scout | -8/Materials Hacker-Sprinter | -8/Garrison Hacker-Sprinter | -8/Materials Hacker-Sprinter | -8/Garrison Hacker-Sprinter | -7/Factory Hacker-Sprinter | -7/Garrison Hacker-Sprinter | -7/Factory Bothacker-Sprinter | -7/Garrison Bothacker-Sprinter | -6/Factory Botlord-Sprinter | -6/Garrison Botlord-Sprinter | -5/Factory Botlord-Sprinter | -5/Garrison Botlord-Sprinter | -4/Factory Botlord-Sprinter | -4/Armory Resources | -11 -10 -10 -9 -9 -9 -8 -8 -8 -8 -8 -7 -7 -7 -7 -6 -6 -5 -5 -4 -4 ----------- Run | Jun Mat Min Mat Min Exi Min Mat Gar Mat Gar Fac Gar Fac Gar Fac Gar Fac Gar Fac Arm Matter Collected 1648 | 259 377 174 100 20 . 5 . 121 26 34 40 75 . 25 . 100 . 28 131 133 Remotely . | . . . . . . . . . . . . . . . . . . . . . Salvage Created 6965 | 92 373 149 1263 115 . 43 . 428 993 519 82 614 . 851 . 1074 . 14 . 355 Parts 396 | 6 45 6 92 4 . 9 . 32 53 18 2 25 . 43 . 40 . . . 21 Haulers Intercepted 5 | . 1 . 2 . . . . . 1 . 1 . . . . . . . . . Recyclers Shooed . | . . . . . . . . . . . . . . . . . . . . . Parts Field Recycled . | . . . . . . . . . . . . . . . . . . . . . Retrieved Matter . | . . . . . . . . . . . . . . . . . . . . . Parts Self-Destructed . | . . . . . . . . . . . . . . . . . . . . . Prevented . | . . . . . . . . . . . . . . . . . . . . . Kills | -11 -10 -10 -9 -9 -9 -8 -8 -8 -8 -8 -7 -7 -7 -7 -6 -6 -5 -5 -4 -4 ------- Run | Jun Mat Min Mat Min Exi Min Mat Gar Mat Gar Fac Gar Fac Gar Fac Gar Fac Gar Fac Arm Combat Hostiles Destroyed 146 | . 16 6 30 2 . 5 . 10 17 9 . 13 . 14 . 16 . . . 8 Melee 126 | . . 4 30 . . 5 . 10 17 9 . 13 . 14 . 16 . . . 8 Guns 3 | . 3 . . . . . . . . . . . . . . . . . . . Cannons 15 | . 13 2 . . . . . . . . . . . . . . . . . . AOE 1 | . . . . 1 . . . . . . . . . . . . . . . . Classes Destroyed 18 | 2 6 1 2 . . . . 2 2 1 . . . . . 1 . . . 1 Worker 2 | . . . 1 . . . . . 1 . . . . . . . . . . . Tunneler 3 | 1 1 . . 1 . . . . . . . . . . . . . . . . Hauler 5 | . 1 . 2 . . . . . 1 . 1 . . . . . . . . . Recycler 4 | 1 1 . 1 . . . . . 1 . . . . . . . . . . . Mechanic 1 | . 1 . . . . . . . . . . . . . . . . . . . Operator 6 | . 1 . 3 . . . . . . . 1 . . . . 1 . . . . Watcher 11 | . 3 . 4 . . . . . 4 . . . . . . . . . . . Swarmer 24 | . 9 . 10 . . 3 . . . . . 1 . . . . . . . 1 Cutter 5 | . . . . . . . . . 3 . . . . . . . . . . 2 Grunt 72 | . 7 4 11 2 . 2 . 2 8 6 . 9 . 7 . 11 . . . 3 Brawler 5 | . . . . . . . . . 1 . . 2 . 1 . 1 . . . . Duelist 1 | . . . . . . . . . . . . . . . . 1 . . . . Sentry 28 | . . . 9 . . . . 4 5 2 . 1 . 6 . 1 . . . . Demolisher 2 | . . . . . . . . . . . . . . . . . . . . 2 Specialist 1 | . . . . . . . . 1 . . . . . . . . . . . . Hunter 2 | . . . . . . . . . . 1 . . . . . 1 . . . . Programmer 6 | . . . . . . . . 3 . . . . . 1 . 2 . . . . Assembled 2 | . . 2 . . . . . . . . . . . . . . . . . . Best Kill Streak 7 | 2 6 2 7 2 . 3 . 3 6 3 2 2 . 3 . 2 . . . 3 Combat Bots Only 5 | . 3 2 5 2 . 3 . 3 5 3 . 2 . 3 . 2 . . . 3 Max Kills in Single Turn 1 | 1 1 1 1 1 . 1 . 1 1 1 1 1 . 1 . 1 . . . 1 Gunslinging . | . . . . . . . . . . . . . . . . . . . . . Exploded 1 | . . . . 1 . . . . . . . . . . . . . . . . Melee 1 | . . 1 1 . . 1 . 1 1 1 . 1 . 1 . 1 . . . 1 Uniques/NPCs Destroyed . | . . . . . . . . . . . . . . . . . . . . . Combat | -11 -10 -10 -9 -9 -9 -8 -8 -8 -8 -8 -7 -7 -7 -7 -6 -6 -5 -5 -4 -4 -------- Run | Jun Mat Min Mat Min Exi Min Mat Gar Mat Gar Fac Gar Fac Gar Fac Gar Fac Gar Fac Arm Damage Taken 6336 | . 495 358 838 107 . 197 . 1082 333 250 86 523 . 658 . 568 . . 19 822 Core 4406 | . 407 251 529 74 . 117 . 743 217 135 68 321 . 450 . 422 . . 15 657 Absorbed by Shields 573 | . . . . . . . . 28 . 20 . 5 . . . 127 . . 21 372 Redirected to Core 3214 | . 266 169 414 62 . 102 . 429 148 114 68 249 . 292 . 332 . . 15 554 Redirected to Shielding 29 | . . 29 . . . . . . . . . . . . . . . . . . Regen/Repaired (Parts) 44 | . . . 44 . . . . . . . . . . . . . . . . . Core Remaining (%) 90 | 100 . 59 . . . 99 . . . 98 . . . 91 . 93 . 93 . . Volleys Fired 152 | 3 92 14 . . . . . . . . . 5 . 3 . 4 3 12 7 9 Largest 1 | 1 1 1 . . . . . . . . . 1 . 1 . 1 1 1 1 1 Hottest 35 | 20 35 35 . . . . . . . . . 5 . 5 . 5 5 5 7 7 Shots Fired 152 | 3 92 14 . . . . . . . . . 5 . 3 . 4 3 12 7 9 Gun 16 | 3 13 . . . . . . . . . . . . . . . . . . . Cannon 93 | . 79 14 . . . . . . . . . . . . . . . . . . Launcher . | . . . . . . . . . . . . . . . . . . . . . Special 43 | . . . . . . . . . . . . 5 . 3 . 4 3 12 7 9 Kinetic 109 | 3 92 14 . . . . . . . . . . . . . . . . . . Thermal . | . . . . . . . . . . . . . . . . . . . . . Explosive . | . . . . . . . . . . . . . . . . . . . . . Electromagnetic . | . . . . . . . . . . . . . . . . . . . . . Robot Hit Streak 16 | 3 8 3 . . . . . . . . . 6 . 9 . 12 2 14 16 5 Robot Miss Streak 6 | . 6 3 . . . . . . . . . . . . . . 1 . 1 1 Penetration Max . | . . . . . . . . . . . . . . . . . . . . . Secondary Targets . | . . . . . . . . . . . . . . . . . . . . . Shots Hit Robots 505 | 3 54 17 93 2 . 9 . 36 61 26 4 51 . 48 . 47 2 13 6 33 Core Hits 207 | 3 24 7 37 1 . 6 . 15 25 11 1 21 . 21 . 23 . . . 12 Critical Kills . | . . . . . . . . . . . . . . . . . . . . . Critical Parts Destroyed . | . . . . . . . . . . . . . . . . . . . . . Critical Strikes 33 | . . . 9 . . 1 . 1 6 2 1 5 . 4 . 1 . . . 3 Sever 3 | . . . . . . . . . . . . . . . . . . . . 3 Impale 30 | . . . 9 . . 1 . 1 6 2 1 5 . 4 . 1 . . . . Melee Attacks 589 | . . 16 138 6 . 11 . 53 72 37 11 70 . 63 . 70 . 3 . 39 Impact . | . . . . . . . . . . . . . . . . . . . . . Slashing 87 | . . . . . . . . . . . . . . . . 45 . 3 . 39 Piercing 498 | . . 16 134 6 . 11 . 53 72 37 11 70 . 63 . 25 . . . . Sneak Attacks 37 | . . . 11 1 . . . . 5 . 1 3 . 5 . 9 . . . 2 Combat Hostiles 19 | . . . 3 . . . . . 3 . . 3 . 3 . 5 . . . 2 Follow-up Attacks . | . . . . . . . . . . . . . . . . . . . . . Damage Inflicted 16249 | 39 960 458 3137 117 . 286 . 1337 2144 791 282 1537 . 1633 . 2192 . 116 . 1220 Guns 113 | 39 74 . . . . . . . . . . . . . . . . . . . Cannons 1063 | . 886 177 . . . . . . . . . . . . . . . . . . Explosions 113 | . . . . . . . . . . . 113 . . . . . . . . . Melee 14960 | . . 281 3137 117 . 286 . 1337 2144 791 169 1537 . 1633 . 2192 . 116 . 1220 Ramming . | . . . . . . . . . . . . . . . . . . . . . Kinetic 1176 | 39 960 177 . . . . . . . . . . . . . . . . . . Thermal 113 | . . . . . . . . . . . 113 . . . . . . . . . Explosive . | . . . . . . . . . . . . . . . . . . . . . Electromagnetic . | . . . . . . . . . . . . . . . . . . . . . Impact . | . . . . . . . . . . . . . . . . . . . . . Slashing 2868 | . . . . . . . . . . . . . . . . 1532 . 116 . 1220 Piercing 12092 | . . 281 3137 117 . 286 . 1337 2144 791 169 1537 . 1633 . 660 . . . . Highest Corruption 4 | . . . . . . . . 4 4 4 . . . . . 1 . . . . Average Corruption 3 | . . . . . . . . 3 4 4 . . . . . 1 . . . . Corruption Purged . | . . . . . . . . . . . . . . . . . . . . . Corruption Blocked . | . . . . . . . . . . . . . . . . . . . . . Effects 26 | . . . . . . . . 7 8 8 . . . . . 3 . . . . Message Errors 4 | . . . . . . . . . 2 2 . . . . . . . . . . Matter Fused 10 | . . . . . . . . 2 4 3 . . . . . 1 . . . . Heat Flow Errors 1 | . . . . . . . . 1 . . . . . . . . . . . . Energy Discharges 4 | . . . . . . . . 2 . 1 . . . . . 1 . . . . Data Loss (minor) 2 | . . . . . . . . 1 . 1 . . . . . . . . . . Data Loss (major) 4 | . . . . . . . . 1 2 1 . . . . . . . . . . Alerts 1 | . . . . . . . . . . . . . . . . 1 . . . . Overload Shots . | . . . . . . . . . . . . . . . . . . . . . Overflow Damage 966 | . 10 3 209 . . . . 53 214 24 85 59 . 27 . 167 . 76 . 39 Projectiles 10 | . 10 . . . . . . . . . . . . . . . . . . . Explosions 83 | . . . . . . . . . . . 83 . . . . . . . . . Melee 873 | . . 3 209 . . . . 53 214 24 2 59 . 27 . 167 . 76 . 39 Knockbacks 15 | . 14 1 . . . . . . . . . . . . . . . . . . Impact . | . . . . . . . . . . . . . . . . . . . . . Kinetic 13 | . 12 1 . . . . . . . . . . . . . . . . . . Secondary 2 | . 2 . . . . . . . . . . . . . . . . . . . Self-Inflicted Damage 86 | . . . . . . . . . . . 86 . . . . . . . . . Shots 1 | . . . . . . . . . . . 1 . . . . . . . . . Rammed . | . . . . . . . . . . . . . . . . . . . . . Targets Rammed . | . . . . . . . . . . . . . . . . . . . . . Kicked . | . . . . . . . . . . . . . . . . . . . . . Crushed . | . . . . . . . . . . . . . . . . . . . . . Highest Temperature 236 | . 21 182 27 21 . 18 . 236 4 5 1 13 . 6 . 17 . 10 . 5 Average Temperature 27 | . 5 98 2 8 . 9 . 51 3 1 1 7 . 3 . 6 . 5 . 2 Received Heat Transfer 1716 | . 114 99 282 66 . 108 . 156 135 117 . 285 . 192 . 95 . . 4 63 Siege Activations . | . . . . . . . . . . . . . . . . . . . . . Robots Corrupted . | . . . . . . . . . . . . . . . . . . . . . Combat Hostiles . | . . . . . . . . . . . . . . . . . . . . . Parts Fried 2 | . . . . 2 . . . . . . . . . . . . . . . . Impact Corruptions . | . . . . . . . . . . . . . . . . . . . . . Robots Melted . | . . . . . . . . . . . . . . . . . . . . . Combat Hostiles . | . . . . . . . . . . . . . . . . . . . . . Parts Melted 5 | . . . . . . . . . . . . 4 . 1 . . . . . . Heat Transferred 50 | . . . . . . . . . . . 50 . . . . . . . . . Parts Sabotaged . | . . . . . . . . . . . . . . . . . . . . . Parts Stolen . | . . . . . . . . . . . . . . . . . . . . . Parts Stripped . | . . . . . . . . . . . . . . . . . . . . . Power Chain Reactions . | . . . . . . . . . . . . . . . . . . . . . Missiles Intercepted 1 | . . . . . . . . . . . . . . . . . . . . 1 Alert | -11 -10 -10 -9 -9 -9 -8 -8 -8 -8 -8 -7 -7 -7 -7 -6 -6 -5 -5 -4 -4 ------- Run | Jun Mat Min Mat Min Exi Min Mat Gar Mat Gar Fac Gar Fac Gar Fac Gar Fac Gar Fac Arm Peak Influence 968 | 10 243 172 663 285 . 310 124 532 797 588 363 867 455 968 508 922 498 398 214 488 Initial 508 | . 6 40 66 208 . . 120 1 259 323 308 145 455 318 508 154 483 243 208 86 Average 355 | 5 101 112 338 268 . 145 46 285 388 446 199 472 455 641 223 513 416 383 201 227 Maximum Alert Level 3 | . 1 . 2 1 . 1 . 2 3 2 1 3 2 3 2 3 2 1 1 2 Low Security (%) 28 | 100 84 100 29 . . 50 100 23 26 . 57 12 . . . 17 . . 23 59 Level 1 32 | . 15 . 33 100 . 49 . 43 25 12 42 32 . 7 98 18 51 100 76 32 Level 2 28 | . . . 36 . . . . 32 33 87 . 40 100 39 1 35 48 . . 7 Level 3 10 | . . . . . . . . . 13 . . 15 . 52 . 28 . . . . Level 4 . | . . . . . . . . . . . . . . . . . . . . . Level 5 . | . . . . . . . . . . . . . . . . . . . . . High Security . | . . . . . . . . . . . . . . . . . . . . . Max Security . | . . . . . . . . . . . . . . . . . . . . . Squads Dispatched 21 | . 3 2 6 . . . . . 4 . 1 . . . . . . . 1 4 Investigation 12 | . 2 2 5 . . . . . 1 . 1 . . . . . . . . 1 Extermination 1 | . . . . . . . . . . . . . . . . . . . . 1 Reinforcement 7 | . 1 . 1 . . . . . 3 . . . . . . . . . . 2 Assault . | . . . . . . . . . . . . . . . . . . . . . Garrison 1 | . . . . . . . . . . . . . . . . . . . 1 . Intercept . | . . . . . . . . . . . . . . . . . . . . . Searches Triggered . | . . . . . . . . . . . . . . . . . . . . . Construction Impeded . | . . . . . . . . . . . . . . . . . . . . . Haulers Reinforced . | . . . . . . . . . . . . . . . . . . . . . Active Scanning Responses . | . . . . . . . . . . . . . . . . . . . . . Cargo Convoy Interrupts . | . . . . . . . . . . . . . . . . . . . . . Stealth | -11 -10 -10 -9 -9 -9 -8 -8 -8 -8 -8 -7 -7 -7 -7 -6 -6 -5 -5 -4 -4 --------- Run | Jun Mat Min Mat Min Exi Min Mat Gar Mat Gar Fac Gar Fac Gar Fac Gar Fac Gar Fac Arm Distress Signals 5 | . 2 . 1 . . . . . . . . . . . . . . . . 2 Communications Jammed 6 | . . . . . . . . . . . . . . . . . . . 6 . Distress Signals 6 | . . . . . . . . . . . . . . . . . . . 6 . Times Spotted 259 | . 25 11 45 3 . 14 . 20 25 10 5 21 . 17 . 25 1 . 11 26 Peak Tracking Total 10 | . 5 5 8 3 . 3 . 4 7 3 3 6 . 3 . 8 1 . 7 10 Tactical Retreats 31 | . . 2 6 . . 3 . . 5 . . 4 . 1 . 4 . . . 6 Traps | -11 -10 -10 -9 -9 -9 -8 -8 -8 -8 -8 -7 -7 -7 -7 -6 -6 -5 -5 -4 -4 ------- Run | Jun Mat Min Mat Min Exi Min Mat Gar Mat Gar Fac Gar Fac Gar Fac Gar Fac Gar Fac Arm Traps Triggered 27 | . . . . . . . . 3 . 2 1 9 . 2 . 9 . . . 1 Indirectly . | . . . . . . . . . . . . . . . . . . . . . Trap Hack Attempts 51 | . . . 28 . . . . 23 . . . . . . . . . . . . Triggered . | . . . . . . . . . . . . . . . . . . . . . Disarmed . | . . . . . . . . . . . . . . . . . . . . . Reprogrammed 6 | . . . 4 . . . . 2 . . . . . . . . . . . . Reused 10 | . . . . 1 . 4 . 5 . . . . . . . . . . . . Traps Extracted 12 | . . . 4 4 . 1 . 3 . . . . . . . . . . . . Installed 13 | . . . . 2 . 5 . 6 . . . . . . . . . . . . Triggered 11 | . . . . 2 . 4 . 5 . . . . . . . . . . . . Most Traps Carried 6 | . . . 4 6 6 4 . 5 . . . . . . . . . . . . Machines | -11 -10 -10 -9 -9 -9 -8 -8 -8 -8 -8 -7 -7 -7 -7 -6 -6 -5 -5 -4 -4 ---------- Run | Jun Mat Min Mat Min Exi Min Mat Gar Mat Gar Fac Gar Fac Gar Fac Gar Fac Gar Fac Arm Machines Disabled 32 | . 3 . . . . . . 7 . . 5 4 . 3 . 6 . 1 1 2 Max in Single Turn 5 | . 1 . . . . . . 1 . . 5 1 . 1 . 1 . 1 . 1 Garrison Relay 13 | . . . . . . . . 3 . . . 3 . 3 . 3 . 1 . . Phase Generator 1 | . . . . . . . . 1 . . . . . . . . . . . . Machines Repaired . | . . . . . . . . . . . . . . . . . . . . . Machines Sabotaged . | . . . . . . . . . . . . . . . . . . . . . Overloaded Fab Kills . | . . . . . . . . . . . . . . . . . . . . . Hacking | -11 -10 -10 -9 -9 -9 -8 -8 -8 -8 -8 -7 -7 -7 -7 -6 -6 -5 -5 -4 -4 --------- Run | Jun Mat Min Mat Min Exi Min Mat Gar Mat Gar Fac Gar Fac Gar Fac Gar Fac Gar Fac Arm Machines Accessed 69 | . 8 2 14 . 2 . 4 2 7 3 8 2 1 3 3 2 2 2 1 3 Terminals 52 | . 6 1 11 . . . 3 2 5 3 6 2 . 3 1 2 1 2 1 3 Fabricators 1 | . . . . . . . . . . . . . . . 1 . . . . . Repair Stations 1 | . . . 1 . . . . . . . . . . . . . . . . . Recycling Units 6 | . 2 . 2 . . . . . 1 . 1 . . . . . . . . . Scanalyzers . | . . . . . . . . . . . . . . . . . . . . . Garrison Access 6 | . . . . . . . 1 . 1 . 1 . 1 . 1 . 1 . . . Total Hacks 201 | . 19 5 49 . 5 . 8 2 30 5 30 5 1 8 8 2 5 2 5 12 Successful 98 | . 8 1 19 . 5 . 5 2 11 3 20 2 1 3 5 2 3 2 3 3 Failed 102 | . 11 4 29 . . . 3 . 19 2 10 3 . 5 3 . 2 . 2 9 Catastrophic 18 | . 6 1 7 . . . . . 4 . . . . . . . . . . . Database Lockouts 1 | . . . 1 . . . . . . . . . . . . . . . . . Manual 100 | . 10 3 26 . 1 . 4 . 18 . 22 . . 3 . . 4 . 5 4 Terminals 174 | . 17 4 42 . . . 7 2 27 5 27 5 . 8 5 2 4 2 5 12 Fabricators 2 | . . . . . . . . . . . . . . . 2 . . . . . Repair Stations 4 | . . . 4 . . . . . . . . . . . . . . . . . Recycling Units 9 | . 2 . 3 . . . . . 2 . 2 . . . . . . . . . Scanalyzers . | . . . . . . . . . . . . . . . . . . . . . Garrison Access 6 | . . . . . . . 1 . 1 . 1 . 1 . 1 . 1 . . . Terminal Hacks 62 | . 5 1 12 . 5 . 4 2 7 3 6 2 . 3 3 2 1 2 2 2 Record 5 | . . . 1 . 4 . . . . . . . . . . . . . . . Part Schematic 1 | . . . . . . . . . . . 1 . . . . . . . . . Robot Analysis 4 | . . . 2 . . . 1 . 1 . . . . . . . . . . . Prototype ID Bank 4 | . . . 3 . . . . . 1 . . . . . . . . . . . Open Door 4 | . . 1 . . . . . . . 1 . 1 . . . 1 . . . . Branch Access Points 2 | . . . . . . . . . 1 . 1 . . . . . . . . . Emergency Access Points 5 | . . . . . . . . 1 . 1 . . . 1 . 1 . 1 . . Machine Index 1 | . . . . . . . . . . . . . . . . . . . . 1 Terminal Index 2 | . . . . . . . . . . . 1 . . . . . . . 1 . Garrison Index 2 | . . . . . . . . . . . . . . . 1 . . . 1 . Unreport Threat 18 | . 4 . 4 . . . 1 . 4 . 2 . . . 2 . 1 . . . Locate Traps 4 | . . . 2 . . . 1 . . . 1 . . . . . . . . . Hauler Manifests 1 | . . . . . . . 1 . . . . . . . . . . . . . Registered Prototypes 1 | . . . . . . . . . . . . . . . . . . . . 1 Zone Layout 1 | . 1 . . . . . . . . . . . . . . . . . . . Garrison Registry 3 | . . . . . . . . 1 . . . . . 1 . . . 1 . . Patrol Navigation 1 | . . . . . . . . . . 1 . . . . . . . . . . Security Stations 2 | . . . . . . . . . . . . 1 . 1 . . . . . . EX-Prototype ID Bank 1 | . . . . . 1 . . . . . . . . . . . . . . . Fabricator Hacks 1 | . . . . . . . . . . . . . . . 1 . . . . . Build 1 | . . . . . . . . . . . . . . . 1 . . . . . Repair Station Hacks 4 | . . . 4 . . . . . . . . . . . . . . . . . Scan Component 2 | . . . 2 . . . . . . . . . . . . . . . . . Repair 2 | . . . 2 . . . . . . . . . . . . . . . . . Recycling Unit Hacks 3 | . . . 1 . . . . . 1 . 1 . . . . . . . . . Report Inventory 3 | . . . 1 . . . . . 1 . 1 . . . . . . . . . Scanalyzer . | . . . . . . . . . . . . . . . . . . . . . Garrison Access Hacks 6 | . . . . . . . 1 . 1 . 1 . 1 . 1 . 1 . . . Unlock Access 6 | . . . . . . . 1 . 1 . 1 . 1 . 1 . 1 . . . Unauthorized Hacks 22 | . 3 . 2 . . . . . 2 . 12 . . . . . 1 . 1 1 Terminals 16 | . 1 . . . . . . . 1 . 11 . . . . . 1 . 1 1 Track 4 | . 1 . . . . . . . . . 3 . . . . . . . . . Assimilate 3 | . . . . . . . . . . . 2 . . . . . . . . 1 Botnet 4 | . . . . . . . . . . . 4 . . . . . . . . . Detonate 1 | . . . . . . . . . . . 1 . . . . . . . . . Disrupt 1 | . . . . . . . . . 1 . . . . . . . . . . . Operators 3 | . . . . . . . . . . . 1 . . . . . 1 . 1 . Fabricators . | . . . . . . . . . . . . . . . . . . . . . Repair Stations . | . . . . . . . . . . . . . . . . . . . . . Recycling Units 6 | . 2 . 2 . . . . . 1 . 1 . . . . . . . . . Tunnel 6 | . 2 . 2 . . . . . 1 . 1 . . . . . . . . . Scanalyzers . | . . . . . . . . . . . . . . . . . . . . . Garrison Access . | . . . . . . . . . . . . . . . . . . . . . Data Cores Recovered 2 | . . . 2 . . . . . . . . . . . . . . . . . Used . | . . . . . . . . . . . . . . . . . . . . . Hacking Detections 41 | . 6 1 12 . . . 2 2 5 2 2 1 . 1 2 . 1 . 1 3 Full Trace Events 7 | . 1 1 4 . . . . . . . . . . . . . . . . 1 Feedback Events . | . . . . . . . . . . . . . . . . . . . . . Feedback Blocked . | . . . . . . . . . . . . . . . . . . . . . Robot Schematics Acquired . | . . . . . . . . . . . . . . . . . . . . . Robots Built 3 | . . . . . . . . . . . . . . . 3 . . . . . Authchips . | . . . . . . . . . . . . . . . . . . . . . Time 134 | . . . . . . . . . . . . . . . 134 . . . . . Total Robot Build Rating 12 | . . . . . . . . . . . . . . . 12 . . . . . Part Schematics Acquired 1 | . . . . . . . . . . . 1 . . . . . . . . . Parts Built . | . . . . . . . . . . . . . . . . . . . . . Authchips . | . . . . . . . . . . . . . . . . . . . . . Time . | . . . . . . . . . . . . . . . . . . . . . Total Part Build Rating . | . . . . . . . . . . . . . . . . . . . . . Parts Repaired 2 | . . . 2 . . . . . . . . . . . . . . . . . Time 64 | . . . 64 . . . . . . . . . . . . . . . . . Parts Recycled . | . . . . . . . . . . . . . . . . . . . . . Recycled Matter . | . . . . . . . . . . . . . . . . . . . . . Retrieved Matter . | . . . . . . . . . . . . . . . . . . . . . Retrieved Components . | . . . . . . . . . . . . . . . . . . . . . Parts Scanalyzed . | . . . . . . . . . . . . . . . . . . . . . Part Schematics Acquired . | . . . . . . . . . . . . . . . . . . . . . Parts Damaged . | . . . . . . . . . . . . . . . . . . . . . Bothacking | -11 -10 -10 -9 -9 -9 -8 -8 -8 -8 -8 -7 -7 -7 -7 -6 -6 -5 -5 -4 -4 ------------ Run | Jun Mat Min Mat Min Exi Min Mat Gar Mat Gar Fac Gar Fac Gar Fac Gar Fac Gar Fac Arm Used RIF Installer 7 | . . . . . . . . 1 . 2 . 1 . 1 . 1 . 1 . . Hotswap 1 | . . . . . . . . . . 1 . . . . . . . . . . Command Fork 1 | . . . . . . . . . . . . . . 1 . . . . . . Signal Jammer 1 | . . . . . . . . . . . . 1 . . . . . . . . Robot Detection 1 | . . . . . . . . . . . . . . . . 1 . . . . Watcher Feeds 1 | . . . . . . . . . . 1 . . . . . . . . . . Structural Interface 1 | . . . . . . . . . . . . . . . . . . 1 . . Robots Hacked 20 | . . . 1 . . . . . . . . . . 3 . 3 1 . 6 6 Non-combat 3 | . . . 1 . . . . . . . . . . . . . 1 . 1 . Combat 17 | . . . . . . . . . . . . . . 3 . 3 . . 5 6 Robot Hacks Applied 21 | . . . 1 . . . . . . . . . . 3 . 3 2 . 6 6 parse_system 1 | . . . . . . . . . . . . . . . . . 1 . . . no_distress 1 | . . . 1 . . . . . . . . . . . . . . . . . amplify_resonance 5 | . . . . . . . . . . . . . . 1 . 1 . . . 3 wipe_record 1 | . . . . . . . . . . . . . . . . . . . . 1 overwrite_iff 7 | . . . . . . . . . . . . . . 2 . 1 . . 2 2 streamctrl_high 2 | . . . . . . . . . . . . . . . . 1 . . 1 . formatsys_high 4 | . . . . . . . . . . . . . . . . . 1 . 3 . Relay Couplers Released 21 | . . . . . . . . 4 . . . 5 . 4 . 6 . 2 . . Machine Destruction 21 | . . . . . . . . 4 . . . 5 . 4 . 6 . 2 . . Attached 11 | . . . . . . . . 1 . . . 3 . 1 . 2 . 3 . 1 Fabnet Peak Effective % . | . . . . . . . . . . . . . . . . . . . . . Robots Rewired 13 | . . . . . . . . . . . . 3 . . . . . 9 . 1 Allies Hacked . | . . . . . . . . . . . . . . . . . . . . . Hacks Repelled . | . . . . . . . . . . . . . . . . . . . . . Allies | -11 -10 -10 -9 -9 -9 -8 -8 -8 -8 -8 -7 -7 -7 -7 -6 -6 -5 -5 -4 -4 -------- Run | Jun Mat Min Mat Min Exi Min Mat Gar Mat Gar Fac Gar Fac Gar Fac Gar Fac Gar Fac Arm Total Allies 41 | . . . . . . . . . . 2 1 5 . 2 3 7 1 11 6 3 Largest Group 16 | . . . . . . . . . . 2 1 3 . 1 3 4 3 14 16 8 Highest-Rated Group 789 | . . . . . . . . . . 51 26 62 . 32 90 157 167 670 789 445 Highest-Rated Ally 95 | . . . . . . . . . . 31 26 31 . 32 30 95 95 83 83 77 Total Orders . | . . . . . . . . . . . . . . . . . . . . . Ally Attacks 128 | . . . . . . . . . . 10 . 39 . 4 . 16 . 1 47 11 Total Damage 3296 | . . . . . . . . . . 232 . 466 . 128 . 509 . 47 1543 371 Kills 17 | . . . . . . . . . . 2 . 7 . 1 . 1 . . 4 2 Allies Corrupted . | . . . . . . . . . . . . . . . . . . . . . Allies Melted . | . . . . . . . . . . . . . . . . . . . . . Intel | -11 -10 -10 -9 -9 -9 -8 -8 -8 -8 -8 -7 -7 -7 -7 -6 -6 -5 -5 -4 -4 ------- Run | Jun Mat Min Mat Min Exi Min Mat Gar Mat Gar Fac Gar Fac Gar Fac Gar Fac Gar Fac Arm Robot Analysis Total 4 | . . . 2 . . . 1 . 1 . . . . . . . . . . . Derelict Logs Recovered 2 | . . 1 . 1 . . . . . . . . . . . . . . . . Drone Launches . | . . . . . . . . . . . . . . . . . . . . . Drone Recoveries . | . . . . . . . . . . . . . . . . . . . . . Exploration | -11 -10 -10 -9 -9 -9 -8 -8 -8 -8 -8 -7 -7 -7 -7 -6 -6 -5 -5 -4 -4 ------------- Run | Jun Mat Min Mat Min Exi Min Mat Gar Mat Gar Fac Gar Fac Gar Fac Gar Fac Gar Fac Arm Turns Passed 7339 | 56 740 215 1003 189 91 172 24 467 394 505 145 733 5 589 146 1012 103 225 215 310 Spaces Moved 9662 | 42 705 387 1345 291 252 226 71 764 504 646 418 929 13 603 54 1065 188 374 252 533 Core 12 | 12 . . . . . . . . . . . . . . . . . . . . Treads . | . . . . . . . . . . . . . . . . . . . . . Legs 356 | 30 326 . . . . . . . . . . . . . . . . . . . Wheels . | . . . . . . . . . . . . . . . . . . . . . Hover . | . . . . . . . . . . . . . . . . . . . . . Flight 9294 | . 379 387 1345 291 252 226 71 764 504 646 418 929 13 603 54 1065 188 374 252 533 Fastest Speed 26 | 50 29 29 29 29 29 29 29 29 29 29 26 26 26 26 26 26 28 26 26 26 Average Speed 31 | 103 71 29 29 29 29 29 29 29 29 29 26 26 26 26 26 27 28 27 26 26 Slowest Speed 120 | 120 120 29 29 29 29 29 29 29 29 29 29 26 26 26 26 28 28 28 26 28 Overloaded Moves . | . . . . . . . . . . . . . . . . . . . . . Propulsion Burnouts . | . . . . . . . . . . . . . . . . . . . . . Robots Hopped 13 | . 2 3 . . . . . . . . 1 2 . . . . 1 3 . 1 Cave-ins Triggered 1 | . . . . . . . . . . . . . . . . . . . . 1 Exploration Rate (%) 49 | 3 97 89 92 59 60 33 9 77 52 76 20 68 1 76 6 95 6 61 10 45 Regions Visited 20 Branch Regions 5 Pre-discovered Areas 8 | . 2 1 2 . 1 . . . 1 . 1 . . . . . . . . . Known Exits Taken 9 | . . . 1 1 1 . 1 . 1 . 1 . 1 . 1 . 1 . . . Unknown Exits Taken 5 | 1 1 1 . . . 1 . . . . . . . . . . . . 1 . Scrap Searched 2 | . . 1 . 1 . . . . . . . . . . . . . . . . Spaces Dug 50 | . . 2 14 2 . . . 1 8 1 7 4 . . . . . . . 11 Terrain Destroyed 66 | . . 2 14 2 . . . 1 8 1 23 4 . . . . . . . 11 Melee 50 | . . 2 14 2 . . . 1 8 1 7 4 . . . . . . . 11 Projectile . | . . . . . . . . . . . . . . . . . . . . . AOE 16 | . . . . . . . . . . . 16 . . . . . . . . . Terrain Rammed . | . . . . . . . . . . . . . . . . . . . . . Walls Destroyed . | . . . . . . . . . . . . . . . . . . . . . Machines Disabled . | . . . . . . . . . . . . . . . . . . . . . Actions | -11 -10 -10 -9 -9 -9 -8 -8 -8 -8 -8 -7 -7 -7 -7 -6 -6 -5 -5 -4 -4 --------- Run | Jun Mat Min Mat Min Exi Min Mat Gar Mat Gar Fac Gar Fac Gar Fac Gar Fac Gar Fac Arm Total 13243 | 49 848 456 1813 390 270 320 73 989 702 938 442 1341 14 965 185 1692 235 479 399 643 Wait 2085 | . 24 22 237 84 16 64 . 43 98 215 6 219 1 247 131 364 45 84 139 46 Move 9622 | 41 700 380 1344 290 251 225 71 763 503 645 416 925 13 602 54 1064 186 367 251 531 Hop 12 | . 2 3 . . . . . . . . 1 1 . . . . 1 3 . 1 Pick Up 23 | . . . 1 4 1 . . 5 . . . . . . . 6 . 5 . 1 Fast Attach 50 | 5 7 6 7 . . . 2 6 . 1 3 3 . 1 . 4 . . . 5 Attach 3 | . . . . . . . . . . . . . . . . 1 . 1 . 1 Detach 7 | . 1 . 1 . . 1 . 2 . . . 1 . . . . . . . 1 Swap 14 | . . 1 1 . . . . 1 . . 2 1 . . . 3 . 3 1 1 Drop 49 | . 4 6 4 4 2 1 . 10 1 . 3 3 . . . 8 . 1 1 1 Fire 152 | 3 92 14 . . . . . . . . . 5 . 3 . 4 3 12 7 9 Melee 589 | . . 16 138 6 . 11 . 53 72 37 11 70 . 63 . 70 . 3 . 39 Ram . | . . . . . . . . . . . . . . . . . . . . . Kick . | . . . . . . . . . . . . . . . . . . . . . Crush . | . . . . . . . . . . . . . . . . . . . . . Escape Stasis 305 | . . . . . . . . 44 . 26 . 75 . 26 . 134 . . . . Rewire . | . . . . . . . . . . . . . . . . . . . . . Trap 64 | . . . 28 2 . 5 . 29 . . . . . . . . . . . . Miscellaneous 268 | . 18 8 52 . . 13 . 33 28 14 . 38 . 23 . 34 . . . 7 Route ------- -11/Junkyard -10/Materials (discovered 5 exits: *Mat x3 / *Min x2) -10/Mines (discovered 2 exits: *Mat x2) -9/Materials (discovered 4 exits: *Mat x3 / *Min) -9/Mines (discovered 2 exits: *Mat / *Exi) -9/Exiles -8/Mines (discovered 2 exits: *Mat x2) -8/Materials (discovered 2 exits: Sto / Gar) -8/Garrison (discovered 3 exits: *Mat x3) -8/Materials (discovered 4 exits: *Fac / Sto x2 / Gar) -8/Garrison (discovered 3 exits: *Fac x3) -7/Factory (discovered 3 exits: Low x2 / Gar) -7/Garrison (discovered 4 exits: *Fac x4) -7/Factory -7/Garrison (discovered 3 exits: *Fac x3) -6/Factory -6/Garrison (discovered 3 exits: *Fac x3) -5/Factory (discovered 2 exits: [*Upp] / Gar) -5/Garrison (discovered 3 exits: *Fac x3) -4/Factory -4/Armory (discovered 1 exit: [*Res]) History --------- Turn | Location | Event 4 | -11/Junkyard | Discovered new exit (range 16) 6 | -11/Junkyard | Upgraded with Propulsion slot (x1) 6 | -11/Junkyard | Upgraded with Utility slot (x1) 57 | -11/Junkyard | Entered Materials 72 | -10/Materials | Discovered new exit (range 13) 192 | -10/Materials | Discovered new exit (range 16) 304 | -10/Materials | Build established: Hacker-Mutant 511 | -10/Materials | Discovered new exit (range 10) 537 | -10/Materials | Reached level 2 554 | -10/Materials | Upgraded with Propulsion slot (x1) 606 | -10/Materials | Discovered new exit (range 15) 760 | -10/Materials | Discovered new exit (range 10) 797 | -10/Materials | Entered Mines 798 | -10/Mines | Assembled infested the area 799 | -10/Mines | Reached level 3 818 | -10/Mines | Discovered new exit (range 15) 819 | -10/Mines | Core integrity fell below 50% 832 | -10/Mines | Met a Derelict shopkeep closing up shop 836 | -10/Mines | Upgraded with Utility slot (x1) 883 | -10/Mines | Build established: Hacker-Sprinter 889 | -10/Mines | A weapon hastily lodged in a ceiling crevice suddenly fell to the ground 983 | -10/Mines | Discovered new exit (range 14) 997 | -10/Mines | Found a damaged Exp. Sensor Array with a note attached 999 | -10/Mines | Found Prototype Device 999 | -10/Mines | Identified Exp. Sensor Array 1012 | -10/Mines | Entered Materials 1014 | -9/Materials | Reached level 4 1033 | -9/Materials | Upgraded with Utility slot (x1) 1138 | -9/Materials | Core integrity fell below 50% 1215 | -9/Materials | Reached level 5 1253 | -9/Materials | Discovered new exit (range 15) 1301 | -9/Materials | Build established: Hacker-Scout 1384 | -9/Materials | Repaired VTOL Module 1418 | -9/Materials | Repaired VTOL Module 1453 | -9/Materials | Discovered new exit (range 6) 1480 | -9/Materials | Reached level 6 1542 | -9/Materials | Discovered new exit (range 16) 1580 | -9/Materials | Upgraded with Utility slot (x1) 1612 | -9/Materials | Discovered new exit (range 3) 1676 | -9/Materials | Reached level 7 1679 | -9/Materials | Upgraded with Weapon slot (x1) 1679 | -9/Materials | Central database locked down 2015 | -9/Materials | Identified exit to Mines 2015 | -9/Materials | Entered Mines 2088 | -9/Mines | Received a Rocket Launcher from a helpful Derelict 2123 | -9/Mines | Discovered new exit (range 13) 2193 | -9/Mines | Discovered new exit (range 13) 2202 | -9/Mines | Deemed a non-threat by the Exiles lab entrance 2203 | -9/Mines | Identified exit to Exiles 2204 | -9/Mines | Entered Exiles 2206 | -9/Exiles | Reached level 8 2227 | -9/Exiles | Met 8R-AWN 2232 | -9/Exiles | Met EX-HEX 2240 | -9/Exiles | Met EX-BIN 2244 | -9/Exiles | Aligned with FarCom system 2244 | -9/Exiles | Given EX-Vault access code 2252 | -9/Exiles | Opened EX-Vault 2255 | -9/Exiles | Found YOLO Cannon 2262 | -9/Exiles | Warned to stay clear of 0b10 Research branches 2271 | -9/Exiles | Met EX-DEC 2283 | -9/Exiles | Learned location of Zion (-6) 2293 | -9/Exiles | Discovered new exit (range 10) 2295 | -9/Exiles | Identified exit to Mines 2295 | -9/Exiles | Left Exiles lab with YOLO Cannon 2295 | -9/Exiles | Entered Mines 2437 | -8/Mines | Discovered new exit (range 11) 2445 | -8/Mines | Discovered new exit (range 12) 2458 | -8/Mines | Reached level 9 2467 | -8/Mines | Entered Materials 2468 | -8/Materials | Identified exit to Storage 2469 | -8/Materials | Reached level 10 2491 | -8/Materials | Identified exit to Garrison 2491 | -8/Materials | Entered Garrison 2500 | -8/Garrison | Triggered checkpoint 2652 | -8/Garrison | Triggered checkpoint 2653 | -8/Garrison | Garrison Relay disabled 2692 | -8/Garrison | Triggered checkpoint 2730 | -8/Garrison | Reached level 11 2745 | -8/Garrison | Discovered new exit (range 9) 2758 | -8/Garrison | Installed Relay Interface Framework 2769 | -8/Garrison | Phase Generator disabled 2780 | -8/Garrison | Triggered checkpoint 2786 | -8/Garrison | Garrison Relay disabled 2804 | -8/Garrison | Triggered checkpoint 2809 | -8/Garrison | Triggered checkpoint 2826 | -8/Garrison | Build established: Hacker-Sprinter 2828 | -8/Garrison | Core integrity fell below 50% 2937 | -8/Garrison | Garrison Relay disabled 2944 | -8/Garrison | Spotted B-75 Beast 2946 | -8/Garrison | Discovered new exit (range 11) 2954 | -8/Garrison | Discovered new exit (range 88) 2954 | -8/Garrison | Discovered new exit (range 71) 2954 | -8/Garrison | Discovered new exit (range 13) 2958 | -8/Garrison | Entered Materials 3075 | -8/Materials | Reached level 12 3119 | -8/Materials | Discovered new exit (range 14) 3312 | -8/Materials | Identified exit to Garrison 3352 | -8/Materials | Entered Garrison 3356 | -8/Garrison | Triggered checkpoint 3405 | -8/Garrison | Rescued a captive Derelict 3405 | -8/Garrison | Rescued a captive Derelict 3450 | -8/Garrison | Triggered checkpoint 3458 | -8/Garrison | Discovered new exit (range 10) 3470 | -8/Garrison | Expanded RIF knowledge: Watcher Feeds 3492 | -8/Garrison | Triggered checkpoint 3531 | -8/Garrison | Discovered new exit (range 8) 3711 | -8/Garrison | Reached level 13 3776 | -8/Garrison | Triggered checkpoint 3816 | -8/Garrison | Expanded RIF knowledge: Hotswap 3854 | -8/Garrison | Discovered new exit (range 10) 3857 | -8/Garrison | Entered Factory 3859 | -7/Factory | Reached level 14 3892 | -7/Factory | Upgraded with Propulsion slot (x1) 3936 | -7/Factory | Identified exit to Lower Caves 4002 | -7/Factory | Identified exit to Garrison 4002 | -7/Factory | Entered Garrison 4050 | -7/Garrison | Garrison Relay disabled 4101 | -7/Garrison | Discovered new exit (range 15) 4121 | -7/Garrison | Garrison Relay disabled 4127 | -7/Garrison | Reached level 15 4168 | -7/Garrison | Triggered checkpoint 4384 | -7/Garrison | Discovered new exit (range 12) 4386 | -7/Garrison | Learned Factory security intel 4398 | -7/Garrison | Triggered checkpoint 4403 | -7/Garrison | Garrison Relay disabled 4501 | -7/Garrison | Rescued a captive Derelict 4502 | -7/Garrison | Rescued a captive Derelict 4589 | -7/Garrison | Discovered new exit (range 10) 4594 | -7/Garrison | Discovered new exit (range 6) 4624 | -7/Garrison | Triggered checkpoint 4678 | -7/Garrison | Triggered checkpoint 4715 | -7/Garrison | Expanded RIF knowledge: Signal Jamming 4735 | -7/Garrison | Entered Factory 4740 | -7/Factory | Identified exit to Garrison 4740 | -7/Factory | Entered Garrison 4740 | -7/Garrison | Reached level 16 4764 | -7/Garrison | Triggered checkpoint 4784 | -7/Garrison | Garrison Relay disabled 4800 | -7/Garrison | Triggered checkpoint 4906 | -7/Garrison | Triggered checkpoint 4974 | -7/Garrison | Garrison Relay disabled 4976 | -7/Garrison | Upgraded with Utility slot (x1) 4998 | -7/Garrison | Discovered new exit (range 11) 5140 | -7/Garrison | Triggered checkpoint 5177 | -7/Garrison | Discovered new exit (range 63) 5177 | -7/Garrison | Discovered new exit (range 12) 5177 | -7/Garrison | Discovered new exit (range 40) 5216 | -7/Garrison | Triggered checkpoint 5256 | -7/Garrison | Triggered checkpoint 5263 | -7/Garrison | Build established: Bothacker-Sprinter 5277 | -7/Garrison | Learned Factory security intel 5279 | -7/Garrison | Garrison Relay disabled 5323 | -7/Garrison | Expanded RIF knowledge: Command Fork 5329 | -7/Garrison | Entered Factory 5331 | -6/Factory | Reached level 17 5344 | -6/Factory | Identified exit to Garrison 5474 | -6/Factory | Fabricated L-41 Fighter? 5475 | -6/Factory | Entered Garrison 5484 | -6/Garrison | Expanded RIF knowledge: Robot Detection 5484 | -6/Garrison | Reached level 18 5633 | -6/Garrison | Discovered new exit (range 14) 5714 | -6/Garrison | Triggered checkpoint 5777 | -6/Garrison | Build established: Botlord-Sprinter 5838 | -6/Garrison | Triggered checkpoint 5842 | -6/Garrison | Garrison Relay disabled 5884 | -6/Garrison | Spotted B-75 Beast 5886 | -6/Garrison | Discovered new exit (range 15) 5892 | -6/Garrison | Rescued a captive Derelict 5893 | -6/Garrison | Rescued a captive Derelict 5956 | -6/Garrison | Allies destroyed B-75 Beast 6132 | -6/Garrison | Triggered checkpoint 6170 | -6/Garrison | H-XX Assembler disabled 6186 | -6/Garrison | Discovered new exit (range 5) 6196 | -6/Garrison | Triggered checkpoint 6231 | -6/Garrison | Garrison Relay disabled 6338 | -6/Garrison | Triggered checkpoint 6343 | -6/Garrison | Found embedded Infiltrators 6375 | -6/Garrison | Garrison Relay disabled 6375 | -6/Garrison | Reached level 19 6383 | -6/Garrison | Upgraded with Utility slot (x1) 6487 | -6/Garrison | Entered Factory 6487 | -5/Factory | Accompanied by 2 allies 6489 | -5/Factory | Reached level 20 6491 | -5/Factory | Discovered new exit (range 10) 6588 | -5/Factory | Identified exit to Garrison 6590 | -5/Factory | Entered Garrison 6590 | -5/Garrison | Discovered recently destroyed garrison 6590 | -5/Garrison | Accompanied by 3 allies 6594 | -5/Garrison | Found embedded Infiltrators 6620 | -5/Garrison | Garrison Relay disabled 6640 | -5/Garrison | Discovered new exit (range 75) 6640 | -5/Garrison | Discovered new exit (range 37) 6640 | -5/Garrison | Discovered new exit (range 80) 6672 | -5/Garrison | Found Relay Coupler [Proto] 6676 | -5/Garrison | Found Relay Coupler [Proto] 6677 | -5/Garrison | Found Relay Coupler [Proto] 6690 | -5/Garrison | Expanded RIF knowledge: Structural Interface 6718 | -5/Garrison | Upgraded with Propulsion slot (x1) 6815 | -5/Garrison | Entered Factory 6815 | -4/Factory | Accompanied by 14 allies 6817 | -4/Factory | Reached level 21 6908 | -4/Factory | Discovered new exit (range 24) 7022 | -4/Factory | Garrison activated, responded to threat 7030 | -4/Factory | Reached level 22 7030 | -4/Factory | Entered Armory 7030 | -4/Armory | Accompanied by 7 allies 7033 | -4/Armory | Reached level 23 7095 | -4/Armory | Spotted B-86 Titan 7107 | -4/Armory | Found Antimissile System 7312 | -4/Armory | Core integrity fell below 50% 7336 | -4/Armory | Discovered new exit (range 4) 7341 | -4/Armory | Crushed by falling debris 7341 | -4/Armory | Smashed by cave-in Last Messages --------------- RIF reveals location of hidden door. Slug penetrates Wall. RIF reveals location of hidden door. ALERT: Rogue bot located, Programmers report to Armory Zone 1S. Attempting to rewire H-77 Assassin. H-77 Assassin rewired. RIF reveals location of hidden door. Slug penetrates Wall. RIF reveals location of hidden door. Sneak attack on D-63 Destroyer. G-67 Veteran destroyed. D-63 Destroyer destroyed. Jacked G-67 Veteran... >>wipe_record Installed hostile record filter. Deleted hostile record. Acquired Protomatter-65. EXIT=FOUND The unstable cave ceiling collapses. Crushed by falling debris. Map ----- +----------------------------------------------------+ | ??# # #????????????????# | | ??# # #????????????????# | | ??# # #????????????????# | | ??# # ????????????????# | | ??##+#####/##### #????????????????# | | ???# #???# #???# #????????????????##+## | | ?### #???#Y#??## ##???????????????????? | | ## # ##### #??#! #???????????????????? | | # ## #??# T #???????????????????? | | # ## #??? "" +???????????????????? | | # ## #??? #???????????????????? | | # %* ##"##### p#????????????????????? | | [ # #????????????????????? | | * [ + #????????????????????? | | # !% ! # #????????????????????? | | # % g # #?? "????????????????? | | # # p# "????????????????? | | # # + "????????????????? | | # # # "????????????????? | | # # #?? "????????????????? | | ################ #????????????????????? | | ???????????????#++#????????????????????? | | ???????????????# #????????????????????? | | ?????????????###< #????????????????????? | | ?????????????# # ]#????????????????????? | | ??????????????#@###????????????????????? | | ??????????????###??????????????????????? | | ???????????????????????????????????????? | | ???????????????????????????????????????? | | ??????????????????????Y????????????????? | | ???????????????????????????????????????? | | ???????????????????????????????????????? | | ???????????????????????????????????????? | | ???????????????????????????????????????? | | ???????????????????????????????????????? | | ???????????????????????????????????????? | | ???????????????????????????????????????? | | ???????????????????????????????????????? | | ???????????????????????????????????????? | | ??????????????????????e?x??????????????? | | ???????????????????????????????????????? | | ???????????????????????x???????????????? | | ???????????????????????????????????????? | | ???????????????????????????????????????? | | ???????????????????????????????????????? | | ???????????????????????????????????????? | | ???????????????????????????????????????? | | ???????????????????????????????????????? | | ???????????????????????????????????????? | | ???????????????????????????????????????? | +----------------------------------------------------+ Best States ------------- Heat Dissipation 43 Energy Generation 28 Energy Capacity 340 Matter Stores 300 Matter Capacity 300 Sight Range 17 Robot Scan Range 20 Terrain Scan Range 16 Terrain Scan Density 510 Armor Coverage 375 Resistance: KI 20 Resistance: TH 20 Propulsion Shielding 33 Weapon Shielding 66 Point Defense Rating 240 Melee Speed Boost 40 Evasion (%) 64 Targeting Accuracy 5 Melee Accuracy 10 Offensive Hacking 30 Defensive Hacking 20 Relay Coupler Types 6 Relay Coupler Value 348 Trap Extractor Capacity 4 Item Schematics ----------------- Adv. Melee Analysis Suite | -7/Factory | Hacked Robot Schematics ------------------ None Fabricated ------------ L-41 Fighter | x3 | -6/Factory | Preloaded Alien Tech Used ----------------- None Achievements -------------- No Explosion For You Challenges ------------ None RPGLIKE | -11 -10 -10 -9 -9 -9 -8 -8 -8 -8 -8 -7 -7 -7 -7 -6 -6 -5 -5 -4 -4 --------- Run | Jun Mat Min Mat Min Exi Min Mat Gar Mat Gar Fac Gar Fac Gar Fac Gar Fac Gar Fac Arm Levels Raised 22 | . 1 1 4 . 1 1 1 1 1 1 1 1 . 1 1 2 1 . 2 1 XP Earned 37001 | 3000 2565 1000 5987 850 304 1300 1500 2572 1398 778 1970 2273 . 955 1541 2027 1500 766 2447 2268 XP Spent 31010 | 2950 1500 800 6350 . 300 . . 1900 4900 . 1170 . . 5400 . 4250 . 1490 . . Upgrades 52 | 11 3 1 11 . 1 . . 3 5 . 2 . . 10 . 3 . 2 . . Propulsion Slot 4 | 1 1 . . . . . . . . . 1 . . . . . . 1 . . Utility Slot 6 | 1 . 1 2 . . . . . . . . . . 1 . 1 . . . . Weapon Slot 1 | . . . 1 . . . . . . . . . . . . . . . . . Heat Dissipation 3 | . . . . . . . . 1 . . 1 . . . . . . 1 . . Energy Generation 1 | . . . . . 1 . . . . . . . . . . . . . . . Mass Support 3 | . 2 . . . . . . 1 . . . . . . . . . . . . Inventory Capacity 5 | . . . 2 . . . . 1 . . . . . . . 2 . . . . Sight Range 1 | . . . . . . . . . . . . . . 1 . . . . . . Terrain Scan Density 5 | 5 . . . . . . . . . . . . . . . . . . . . Melee Accuracy 5 | . . . 5 . . . . . . . . . . . . . . . . . Hack Attack % 6 | 2 . . 1 . . . . . 3 . . . . . . . . . . . Hack Defense % 4 | 2 . . . . . . . . 2 . . . . . . . . . . . KI Resistance % 4 | . . . . . . . . . . . . . . 4 . . . . . . TH Resistance % 4 | . . . . . . . . . . . . . . 4 . . . . . . Protomatter Created 1747 | . 132 58 385 . . 78 . 108 249 80 . 194 . 183 . 178 . . . 102 Integrity Restored 5434 | . 294 174 1082 . . 257 . 724 579 254 . 758 . 495 . 696 . . . 121 Core 3801 | . 243 174 770 . . 186 . 554 339 197 . 399 . 397 . 433 . . . 109 Parts 1633 | . 51 . 312 . . 71 . 170 240 57 . 359 . 98 . 263 . . . 12 Protomatter Decayed 837 | . 30 59 120 . . 57 . . 53 58 . 21 . 36 . 17 . . 144 242 Game ------ Seed ConcussiveAdvancedBiocell Manual? 0 Play Time 01:45:22 Cumulative 336.3 hours Start 2023.03.08 @ 13:54:14 End 2023.03.08 @ 15:42:38 Sessions 1 Manual Loads 0 Difficulty Rogue Special Mode Winter2019/RPGLIKE Game No. 328 Rogue 328 Adventurer 0 Explorer 0 Win Type - Total 23 Types 17/0/4/2/0/0/0/0/0 Lore% 83 Gallery% 89 Achievement% 80 Wizard Run 0 Options --------- ASCII 0 Keyboard 1 Movement Numpad Keybinds 0 Fullscreen 1 Font 18/SmallcapsGlow Map View 76x50 Tactical HUD 1 Map Filters NONE Filters NONE Steam 1 RUN: 1b678719-9ad3-42c3-8bca-67b9d8e7bf26